Cogmind - Beta 10 @@@ ROGUE MODE // 2020.09.21 @ 00:34:33 Player: Omewes Result: Destroyed by H-55 Commando with Gauss Rifle Performance ------------- Evolutions (2) 1000 Regions Visited (9) 1800 Robots Destroyed (130) 650 Value Destroyed (3855) 3855 Prototype IDs (5) 100 Alien Tech Used (0) 0 Bonus (1191) 1191 TOTAL SCORE: 8596 Bonus ------- High Alert Combat Kills 330 Follower Combat Kills 175 Entered Garrisons 200 Used RIF Installer 500 Friendly Fire -14 Cogmind --------- Core Integrity 0/550 Matter 234/300 Energy 100/100 System Corruption 1% Temperature Cool (18) Movement Core (1700) Ox33 Location -8/Materials Parts ------- > --- POWER (1) -------- (None) > --- PROPULSION (2) --- (None) > --- UTILITY (6) ------ High-capacity Storage Unit High-capacity Storage Unit High-capacity Storage Unit Advanced Targeting Computer Improved Utility Shielding > --- WEAPON (2) ------- Gauss Rifle > --- INVENTORY (28) --- Improved Deuterium Engine High-capacity Storage Unit Advanced Sensor Array Advanced Signal Interpreter Advanced Terrain Scanner Hacking Suite Relay Coupler [NC] (26) Relay Coupler [NC] (31) Relay Coupler [NC] (21) Relay Coupler [Grunt] (23) Relay Coupler [Sentry] (25) Heavy Assault Rifle Heavy Assault Rifle Minigun Minigun High-powered Shotgun High-powered Shotgun Enhanced Autogun Rocket Launcher Katana Heavy Explosive Trap Heavy Explosive Trap Peak State ------------ > --- POWER ------------ Improved Deuterium Engine > --- PROPULSION ------- Wheel Compact Wheel > --- UTILITY ---------- High-capacity Storage Unit High-capacity Storage Unit High-capacity Storage Unit Advanced Targeting Computer Improved Utility Shielding Insulated Plating > --- WEAPON ----------- Gauss Rifle Gauss Rifle > --- INVENTORY -------- Improved Deuterium Engine High-capacity Storage Unit Advanced Sensor Array Advanced Signal Interpreter Advanced Terrain Scanner Hacking Suite Relay Coupler [NC] Relay Coupler [NC] Relay Coupler [NC] Relay Coupler [Grunt] Relay Coupler [Sentry] Heavy Assault Rifle Heavy Assault Rifle Minigun Minigun High-powered Shotgun High-powered Shotgun Enhanced Autogun Rocket Launcher Katana Heavy Explosive Trap Heavy Explosive Trap [Rating: 32] Favorites ----------- Power Heavy Ion Engine Engine Heavy Ion Engine Propulsion Wheel Wheel Wheel Utility High-capacity Storage Unit Device Improved Heat Sink Storage High-capacity Storage Unit Processor Improved Targeting Computer Protection Light Armor Plating Weapon Improved EM Shotgun Energy Gun Improved EM Shotgun Energy Cannon Advanced Beam Cannon Ballistic Gun Gauss Rifle Ballistic Cannon Light Cannon Launcher Rocket Launcher Build | -11 -10 -10 -9 -9 -9 -8 -8 -8 -8 ------- Run | Scr Mat Min Mat Min Exi Min Mat Gar Mat Slots Evolved 4 | . . . 2 . . . 2 . . Power . | . . . . . . . . . . Propulsion . | . . . . . . . . . . Utility 4 | . . . 2 . . . 2 . . Weapon . | . . . . . . . . . . Parts Attached 127 | 6 10 4 16 10 2 10 43 3 23 Power 13 | 2 . 1 2 2 . 1 1 . 4 Engine 13 | 2 . 1 2 2 . 1 1 . 4 Core . | . . . . . . . . . . Reactor . | . . . . . . . . . . Propulsion 35 | 2 3 . 1 5 . 3 12 2 7 Treads . | . . . . . . . . . . Leg . | . . . . . . . . . . Wheel 35 | 2 3 . 1 5 . 3 12 2 7 Hover . | . . . . . . . . . . Flight . | . . . . . . . . . . Utility 37 | . 2 . 5 1 2 2 18 1 6 Device 7 | . . . 1 . . 1 5 . . Storage 7 | . 2 . 1 . 2 . 1 . 1 Processor 5 | . . . 3 . . . 2 . . Hackware . | . . . . . . . . . . Protection 18 | . . . . 1 . 1 10 1 5 Artifact . | . . . . . . . . . . Weapon 42 | 2 5 3 8 2 . 4 12 . 6 Energy Gun 15 | 2 3 2 5 2 . 1 . . . Energy Cannon 5 | . . . 2 . . 3 . . . Ballistic Gun 12 | . . . . . . . 6 . 6 Ballistic Cannon 4 | . . 1 . . . . 3 . . Launcher 6 | . 2 . 1 . . . 3 . . Special Weapon . | . . . . . . . . . . Impact Weapon . | . . . . . . . . . . Slashing Weapon . | . . . . . . . . . . Piercing Weapon . | . . . . . . . . . . Special Melee Weapon . | . . . . . . . . . . Unidentified Prototypes 5 | . . . 3 . . . . . 2 Parts Lost 48 | . 4 4 1 5 . 4 9 2 19 Power 4 | . . 1 . . . 1 . . 2 Propulsion 18 | . 3 . . 3 . 1 1 2 8 Utility 11 | . . . 1 . . . 4 . 6 Weapon 15 | . 1 3 . 2 . 2 4 . 3 Highest Loss Streak 9 | . 2 4 1 5 . 3 3 2 9 Average Slot Usage (%) 98 | . 96 98 99 99 100 99 98 98 95 Engine 10 | . 14 13 11 11 11 11 9 9 8 Wheel 20 | . 27 28 22 21 22 21 17 17 16 Device 4 | . . . 8 . . 10 7 . . Storage 23 | . 24 28 22 22 22 22 22 27 27 Processor 7 | . . . 13 20 11 . 6 9 9 Protection 9 | . . . . 2 11 11 16 17 15 Energy Gun 9 | . 26 14 13 21 22 11 . . . Energy Cannon 2 | . . . 5 . . 10 . . . Ballistic Gun 6 | . . . . . . . 13 9 16 Ballistic Cannon 2 | . . 12 2 . . . 2 9 1 Naked Turns . | . . . . . . . . . . Heaviest Build 122 | 8 56 55 63 65 81 85 122 122 122 Greatest Support 26 | 26 26 20 20 20 20 20 26 26 26 Greatest Overweight (x) 33 | . 2 2 3 3 4 7 6 7 33 Average Overweight (x) 3 | . 1 2 2 3 3 4 3 4 5 Largest Inventory Capacity 36 | 4 18 18 18 18 20 20 28 28 36 Average Capacity 21 | 4 16 18 17 18 18 20 24 28 28 Most Carried 28 | 4 9 9 15 18 17 17 28 28 28 Average Carried 16 | 1 7 6 10 16 15 15 21 27 25 Final Capacity 28 | 4 18 18 18 18 20 20 28 28 28 Final Carried 28 | 4 8 9 14 15 16 17 28 26 22 Class Distribution -------------------- 48% | Hauler-Mutant 39% | Mutant 11% | Scavenger-Mutant Dominant Class ---------------- Mutant | -10/Materials Mutant | -10/Mines Mutant | -9/Materials Mutant | -9/Mines Mutant | -9/Exiles Hauler-Mutant | -8/Mines Hauler-Mutant | -8/Materials Hauler-Mutant | -8/Garrison Hauler-Mutant | -8/Materials Resources | -11 -10 -10 -9 -9 -9 -8 -8 -8 -8 ----------- Run | Scr Mat Min Mat Min Exi Min Mat Gar Mat Matter Collected 2633 | 260 150 63 199 80 . 100 1065 238 478 Remotely . | . . . . . . . . . . Salvage Created 4811 | 97 247 135 621 487 . 494 1793 284 653 Parts 263 | 4 21 8 33 22 . 21 115 14 25 Haulers Intercepted 12 | . 1 . 2 . . . 5 . 4 Recyclers Shooed 1 | . . . . . . . 1 . . Parts Field Recycled . | . . . . . . . . . . Retrieved Matter . | . . . . . . . . . . Parts Self-Destructed . | . . . . . . . . . . Prevented . | . . . . . . . . . . Kills | -11 -10 -10 -9 -9 -9 -8 -8 -8 -8 ------- Run | Scr Mat Min Mat Min Exi Min Mat Gar Mat Combat Hostiles Destroyed 88 | . 10 2 10 11 . 9 33 7 6 Guns 45 | . 3 1 3 9 . 3 17 3 6 Cannons 17 | . . 1 3 . . 4 5 4 . AOE 24 | . 7 . 4 1 . 1 11 . . Classes Destroyed 14 | 2 4 . 2 2 . . 4 . . Worker 10 | . 1 1 1 2 . 1 3 . 1 Builder 2 | . . . . . . . 1 . 1 Tunneler 8 | 1 . 2 . . . . 4 . 1 Hauler 12 | . 1 . 2 . . . 5 . 4 Recycler 7 | 1 . . 2 . . . 3 . 1 Mechanic 1 | . . . . . . . 1 . . Watcher 2 | . . . 1 . . . 1 . . Swarmer 14 | . 5 . 2 4 . . 3 . . Grunt 44 | . 5 2 6 5 . 6 13 5 2 Brawler 4 | . . . . 1 . 2 1 . . Duelist 4 | . . . . 1 . 1 2 . . Protector 1 | . . . . . . . 1 . . Sentry 14 | . . . 2 . . . 10 1 1 Hunter 7 | . . . . . . . 3 1 3 Best Kill Streak 11 | 2 5 2 6 6 . 3 11 4 5 Combat Bots Only 10 | . 5 2 3 6 . 3 10 4 3 Max Kills in Single Turn 3 | 1 2 1 2 2 . 1 3 1 1 Gunslinging . | . . . . . . . . . . Exploded 3 | . 2 . 2 1 . 1 3 . . Melee . | . . . . . . . . . . Uniques/NPCs Destroyed . | . . . . . . . . . . Combat | -11 -10 -10 -9 -9 -9 -8 -8 -8 -8 -------- Run | Scr Mat Min Mat Min Exi Min Mat Gar Mat Damage Taken 5835 | . 407 199 163 554 . 494 1818 397 1803 Core 834 | . 64 15 . 142 . 48 244 44 277 Absorbed by Shields 8 | . . . . . . . . 8 . Core Remaining (%) 73 | 100 . 68 . . . 52 . . . Volleys Fired 329 | 3 34 16 44 23 . 25 110 21 53 Largest 2 | 2 2 2 2 2 . 2 2 2 2 Hottest 120 | 90 90 80 113 90 . 120 120 67 67 Shots Fired 585 | 6 59 31 64 46 . 44 187 42 106 Gun 427 | 6 51 24 30 46 . 24 120 21 105 Cannon 140 | . . 7 33 . . 20 58 21 1 Launcher 18 | . 8 . 1 . . . 9 . . Special . | . . . . . . . . . . Kinetic 329 | . . 7 8 . . . 166 42 106 Thermal 140 | 6 51 24 33 . . 20 6 . . Explosive 18 | . 8 . 1 . . . 9 . . Electromagnetic 98 | . . . 22 46 . 24 6 . . Robot Hit Streak 32 | 4 6 11 11 20 . 10 32 16 10 Robot Miss Streak 4 | 1 3 1 3 4 . 3 3 2 3 Penetration Max 1 | . . . . . . . 1 . . Secondary Targets 6 | . . . . 3 . . 2 . 1 Max Gunslinging Chain 1 | . . . . 1 . . 1 . 1 Shots Hit Robots 435 | 5 37 23 50 38 . 38 135 33 76 Core Hits 219 | 3 25 7 25 20 . 18 82 14 25 Critical Hits 7 | . . . 2 1 . . 2 . 2 Critical Kills 1 | . . . 1 . . . . . . Critical Parts Destroyed 5 | . . . . 1 . . 2 . 2 Melee Attacks . | . . . . . . . . . . Impact . | . . . . . . . . . . Slashing . | . . . . . . . . . . Piercing . | . . . . . . . . . . Sneak Attacks . | . . . . . . . . . . Combat Hostiles . | . . . . . . . . . . Follow-up Attacks . | . . . . . . . . . . Damage Inflicted 10050 | 68 1081 285 1219 685 . 828 3932 580 1372 Guns 5449 | 68 333 199 362 583 . 369 1905 258 1372 Cannons 1985 | . . 86 554 . . 282 741 322 . Explosions 2601 | . 748 . 288 102 . 177 1286 . . Melee . | . . . . . . . . . . Ramming 15 | . . . 15 . . . . . . Kinetic 4566 | . . 86 141 . . . 2387 580 1372 Thermal 2082 | 68 333 199 652 102 . 459 269 . . Explosive 1993 | . 748 . 116 . . . 1129 . . Electromagnetic 1394 | . . . 295 583 . 369 147 . . Impact . | . . . . . . . . . . Slashing . | . . . . . . . . . . Piercing . | . . . . . . . . . . Highest Corruption 1 | . . . 1 1 1 1 . . 1 Average Corruption 1 | . . . 1 1 1 1 . . 1 Corruption Purged . | . . . . . . . . . . Effects 14 | . . . . 4 1 8 . . 1 Message Errors 4 | . . . . 1 1 2 . . . Energy Discharges 2 | . . . . . . 2 . . . Data Loss (minor) 1 | . . . . . . 1 . . . Targeting Errors 7 | . . . . 3 . 3 . . 1 Overload Shots . | . . . . . . . . . . Overflow Damage 153 | . 34 . 85 . . 12 22 . . Projectiles 17 | . . . 10 . . . 7 . . Explosions 136 | . 34 . 75 . . 12 15 . . Melee . | . . . . . . . . . . Knockbacks 16 | . . 2 1 . . . 9 4 . Impact 1 | . . . 1 . . . . . . Kinetic 14 | . . 1 . . . . 9 4 . Secondary 1 | . . 1 . . . . . . . Self-Inflicted Damage 238 | . 81 . 55 36 . . 66 . . Shots 8 | . 4 . 1 1 . . 2 . . Rammed 1 | . . . 1 . . . . . . Targets Rammed 1 | . . . 1 . . . . . . Kicked . | . . . . . . . . . . Crushed . | . . . . . . . . . . Highest Temperature 333 | 60 156 97 56 333 . 286 156 135 81 Average Temperature 54 | 28 50 55 15 103 . 112 37 50 32 Received Heat Transfer 1869 | . 132 111 39 207 . 279 486 147 468 Effects 1 | . . . . 1 . . . . . Energy Bleed 1 | . . . . 1 . . . . . Siege Activations . | . . . . . . . . . . Robots Corrupted 2 | . . . . 1 . 1 . . . Combat Hostiles 2 | . . . . 1 . 1 . . . Parts Fried 3 | . . . . 1 . 2 . . . Impact Corruptions . | . . . . . . . . . . Robots Melted . | . . . . . . . . . . Combat Hostiles . | . . . . . . . . . . Parts Melted 2 | . . 1 . . . . 1 . . Heat Transferred 3704 | 186 786 450 1140 100 . 694 348 . . Parts Sabotaged . | . . . . . . . . . . Parts Stolen . | . . . . . . . . . . Parts Stripped . | . . . . . . . . . . Power Chain Reactions 6 | . . . 2 2 . 1 1 . . Missiles Intercepted . | . . . . . . . . . . Alert | -11 -10 -10 -9 -9 -9 -8 -8 -8 -8 ------- Run | Scr Mat Min Mat Min Exi Min Mat Gar Mat Peak Influence 775 | 10 254 60 402 359 . 140 775 631 495 Initial 451 | . 6 21 1 139 . . 22 451 307 Average 269 | 4 124 43 150 230 . 42 429 574 351 Maximum Alert Level 3 | . 1 . 2 1 . . 3 2 2 Low Security (%) 43 | 100 72 100 55 26 . 100 20 . . Level 1 27 | . 27 . 43 73 . . 18 . 77 Level 2 22 | . . . . . . . 39 100 22 Level 3 6 | . . . . . . . 20 . . Level 4 . | . . . . . . . . . . Level 5 . | . . . . . . . . . . High Security . | . . . . . . . . . . Max Security . | . . . . . . . . . . Squads Dispatched 12 | . 2 . 4 . . . 4 . 2 Investigation 2 | . . . . . . . 1 . 1 Extermination . | . . . . . . . . . . Reinforcement 8 | . 2 . 4 . . . 1 . 1 Assault 2 | . . . . . . . 2 . . Garrison . | . . . . . . . . . . Intercept . | . . . . . . . . . . Construction Impeded . | . . . . . . . . . . Haulers Reinforced . | . . . . . . . . . . Stealth | -11 -10 -10 -9 -9 -9 -8 -8 -8 -8 --------- Run | Scr Mat Min Mat Min Exi Min Mat Gar Mat Distress Signals 12 | . 3 . 4 . . . 3 . 2 Communications Jammed . | . . . . . . . . . . Distress Signals . | . . . . . . . . . . Times Spotted 170 | . 25 2 24 13 . 11 58 11 26 Peak Tracking Total 11 | . 7 2 4 6 . 3 11 4 9 Tactical Retreats 24 | . 3 . . 2 . 2 14 1 2 Traps | -11 -10 -10 -9 -9 -9 -8 -8 -8 -8 ------- Run | Scr Mat Min Mat Min Exi Min Mat Gar Mat Traps Triggered 7 | . . . 1 . . . . 5 1 Indirectly . | . . . . . . . . . . Trap Hack Attempts . | . . . . . . . . . . Triggered . | . . . . . . . . . . Disarmed . | . . . . . . . . . . Reprogrammed . | . . . . . . . . . . Reused 1 | . . . . . . . . . 1 Traps Extracted . | . . . . . . . . . . Installed 1 | . . . . . . . . . 1 Triggered 2 | . . . . . . . 1 . 1 Machines | -11 -10 -10 -9 -9 -9 -8 -8 -8 -8 ---------- Run | Scr Mat Min Mat Min Exi Min Mat Gar Mat Machines Disabled 7 | . 1 . . . . 1 3 1 1 Max in Single Turn 1 | . 1 . . . . 1 1 1 1 Garrison Relay 1 | . . . . . . . . 1 . Machines Sabotaged . | . . . . . . . . . . Garrisons Compromised . | . . . . . . . . . . Overloaded Fab Kills . | . . . . . . . . . . Fab Network Shutdowns . | . . . . . . . . . . Hacking | -11 -10 -10 -9 -9 -9 -8 -8 -8 -8 --------- Run | Scr Mat Min Mat Min Exi Min Mat Gar Mat Machines Accessed 9 | . 1 . 2 . . . 4 . 2 Terminals 5 | . 1 . . . . . 3 . 1 Fabricators . | . . . . . . . . . . Repair Stations 1 | . . . . . . . . . 1 Recycling Units 1 | . . . 1 . . . . . . Scanalyzers 1 | . . . 1 . . . . . . Garrison Access 1 | . . . . . . . 1 . . Total Hacks 20 | . 3 . 6 . . . 9 . 2 Successful 12 | . 2 . 5 . . . 5 . . Failed 8 | . 1 . 1 . . . 4 . 2 Catastrophic 3 | . . . . . . . 2 . 1 Database Lockouts . | . . . . . . . . . . Manual 14 | . 3 . 3 . . . 7 . 1 Terminals 12 | . 3 . . . . . 8 . 1 Fabricators . | . . . . . . . . . . Repair Stations 1 | . . . . . . . . . 1 Recycling Units 4 | . . . 4 . . . . . . Scanalyzers 2 | . . . 2 . . . . . . Garrison Access 1 | . . . . . . . 1 . . Terminal Hacks 1 | . . . . . . . 1 . . Zone Layout 1 | . . . . . . . 1 . . Fabricator Hacks . | . . . . . . . . . . Repair Station Hacks . | . . . . . . . . . . Recycling Unit Hacks 1 | . . . 1 . . . . . . Retrieve Components 1 | . . . 1 . . . . . . Scanalyzer 2 | . . . 2 . . . . . . Insert Component 1 | . . . 1 . . . . . . Analyze 1 | . . . 1 . . . . . . Garrison Access Hacks 1 | . . . . . . . 1 . . Unlock Access 1 | . . . . . . . 1 . . Unauthorized Hacks 7 | . 2 . 2 . . . 3 . . Terminals 5 | . 2 . . . . . 3 . . Track 3 | . 1 . . . . . 2 . . Operators 2 | . 1 . . . . . 1 . . Fabricators . | . . . . . . . . . . Repair Stations . | . . . . . . . . . . Recycling Units 2 | . . . 2 . . . . . . Reject 1 | . . . 1 . . . . . . Mask 1 | . . . 1 . . . . . . Scanalyzers . | . . . . . . . . . . Garrison Access . | . . . . . . . . . . Data Cores Recovered . | . . . . . . . . . . Used . | . . . . . . . . . . Hacking Detections 5 | . . . . . . . 3 . 2 Full Trace Events . | . . . . . . . . . . Feedback Events . | . . . . . . . . . . Feedback Blocked . | . . . . . . . . . . Robot Schematics Acquired . | . . . . . . . . . . Robots Built . | . . . . . . . . . . Matter . | . . . . . . . . . . Time . | . . . . . . . . . . Total Robot Build Rating . | . . . . . . . . . . Part Schematics Acquired 1 | . . . 1 . . . . . . Parts Built . | . . . . . . . . . . Matter . | . . . . . . . . . . Time . | . . . . . . . . . . Total Part Build Rating . | . . . . . . . . . . Parts Repaired . | . . . . . . . . . . Time . | . . . . . . . . . . Parts Recycled . | . . . . . . . . . . Recycled Matter . | . . . . . . . . . . Retrieved Matter . | . . . . . . . . . . Retrieved Components 10 | . . . 10 . . . . . . Parts Scanalyzed 1 | . . . 1 . . . . . . Part Schematics Acquired 1 | . . . 1 . . . . . . Parts Damaged . | . . . . . . . . . . Bothacking | -11 -10 -10 -9 -9 -9 -8 -8 -8 -8 ------------ Run | Scr Mat Min Mat Min Exi Min Mat Gar Mat Used RIF Installer 1 | . . . . . . . . 1 . Robots Hacked . | . . . . . . . . . . Non-combat . | . . . . . . . . . . Combat . | . . . . . . . . . . Robot Hacks Applied . | . . . . . . . . . . Relay Couplers Released 5 | . . . . . . . . 5 . Machine Destruction 5 | . . . . . . . . 5 . Robots Rewired . | . . . . . . . . . . Allies Hacked . | . . . . . . . . . . Hacks Repelled . | . . . . . . . . . . Allies | -11 -10 -10 -9 -9 -9 -8 -8 -8 -8 -------- Run | Scr Mat Min Mat Min Exi Min Mat Gar Mat Total Allies 3 | . . 3 . . . . . . . Largest Group 3 | . . 3 3 . . . . . . Highest-Rated Group 40 | . . 40 40 . . . . . . Highest-Rated Ally 16 | . . 16 16 . . . . . . Total Orders . | . . . . . . . . . . Ally Attacks 35 | . . . 35 . . . . . . Total Damage 309 | . . . 309 . . . . . . Kills 9 | . . . 9 . . . . . . Allies Corrupted . | . . . . . . . . . . Allies Melted . | . . . . . . . . . . Intel | -11 -10 -10 -9 -9 -9 -8 -8 -8 -8 ------- Run | Scr Mat Min Mat Min Exi Min Mat Gar Mat Robot Analysis Total . | . . . . . . . . . . Derelict Logs Recovered 2 | . . 2 . . . . . . . Drone Launches . | . . . . . . . . . . Drone Recoveries . | . . . . . . . . . . Exploration | -11 -10 -10 -9 -9 -9 -8 -8 -8 -8 ------------- Run | Scr Mat Min Mat Min Exi Min Mat Gar Mat Turns Passed 5452 | 85 404 457 560 438 307 662 1623 378 538 Spaces Moved 3469 | 72 263 387 344 311 267 473 926 192 234 Core 9 | 8 . . . . . . . . 1 Treads . | . . . . . . . . . . Legs . | . . . . . . . . . . Wheels 3460 | 64 263 387 344 311 267 473 926 192 233 Hover . | . . . . . . . . . . Flight . | . . . . . . . . . . Fastest Speed 50 | 50 90 100 100 110 110 120 115 130 120 Average Speed 116 | 85 103 100 106 110 112 120 125 134 139 Slowest Speed 1700 | 100 110 100 110 110 120 150 140 170 1700 Overloaded Moves . | . . . . . . . . . . Propulsion Burnouts . | . . . . . . . . . . Robots Hopped . | . . . . . . . . . . Cave-ins Triggered . | . . . . . . . . . . Exploration Rate (%) 52 | 3 55 94 34 58 61 86 70 38 27 Regions Visited 9 Branch Regions 4 Pre-discovered Areas 2 | . . 2 . . . . . . . Known Exits Taken 1 | . . . . . . . 1 . . Unknown Exits Taken 7 | 1 1 1 1 1 1 1 . . . Scrap Searched 4 | . . 1 . 1 . 2 . . . Spaces Dug . | . . . . . . . . . . Terrain Destroyed 158 | . 40 . 19 7 . 21 69 . 2 Melee . | . . . . . . . . . . Projectile 8 | . . . . . . 4 2 . 2 AOE 150 | . 40 . 19 7 . 17 67 . . Terrain Rammed . | . . . . . . . . . . Walls Destroyed . | . . . . . . . . . . Machines Disabled . | . . . . . . . . . . Actions | -11 -10 -10 -9 -9 -9 -8 -8 -8 -8 --------- Run | Scr Mat Min Mat Min Exi Min Mat Gar Mat Total 4305 | 87 332 426 473 360 272 522 1202 271 360 Wait 202 | 2 16 15 47 7 . 7 64 6 38 Move 3461 | 71 262 386 343 310 266 472 926 191 234 Hop . | . . . . . . . . . . Pick Up 83 | 4 9 5 11 7 2 5 30 5 5 Fast Attach 20 | 5 2 . 3 . . . 4 . 6 Attach 47 | . 4 4 3 6 . 5 11 2 12 Detach 11 | . . . 3 1 . 1 4 . 2 Swap 60 | 1 4 . 10 4 2 5 28 1 5 Drop 50 | 1 1 . 8 2 2 2 25 5 4 Fire 329 | 3 34 16 44 23 . 25 110 21 53 Melee . | . . . . . . . . . . Ram 1 | . . . 1 . . . . . . Kick . | . . . . . . . . . . Crush . | . . . . . . . . . . Escape Stasis 40 | . . . . . . . . 40 . Rewire . | . . . . . . . . . . Trap 1 | . . . . . . . . . 1 Miscellaneous . | . . . . . . . . . . Route ------- -11/Scrapyard -10/Materials -10/Mines (discovered 2 exits: *Mat x2) -9/Materials -9/Mines (discovered 3 exits: *Mat / [*Exi] / [*Zio]) -9/Exiles -8/Mines -8/Materials (discovered 4 exits: [*Fac x2] / [*Sto] / Gar) -8/Garrison -8/Materials (discovered 1 exit: [*Fac]) History --------- Turn | Location | Event 4 | -11/Scrapyard | Discovered new exit (range 16) 86 | -11/Scrapyard | Entered Materials 306 | -10/Materials | Build established: Mutant 330 | -10/Materials | Discovered new exit (range 13) 490 | -10/Materials | Entered Mines 496 | -10/Mines | Discovered new exit (range 16) 559 | -10/Mines | Received a Rocket Launcher from a helpful Derelict 559 | -10/Mines | Lost 4 parts (1p3w) 605 | -10/Mines | Assisted by bots powering up and referring to "LRC-V3" 658 | -10/Mines | Learned location of Storage (-8) 826 | -10/Mines | Learned Materials stockpile data 932 | -10/Mines | Learned location of Zion (-7) 933 | -10/Mines | Discovered new exit (range 7) 947 | -10/Mines | Entered Materials 947 | -9/Materials | Accompanied by 3 allies 947 | -9/Materials | Evolved 2 slots: Utility x2 1468 | -9/Materials | Discovered new exit (range 11) 1507 | -9/Materials | Entered Mines 1527 | -9/Mines | Found a hidden stash of uninstalled traps 1690 | -9/Mines | A Derelict revealed a hidden shortcut to a safe place 1816 | -9/Mines | Lost 5 parts (3n2w) 1827 | -9/Mines | Discovered new exit (range 10) 1939 | -9/Mines | Deemed a non-threat by the Exiles lab entrance 1941 | -9/Mines | Discovered new exit (range 5) 1945 | -9/Mines | Entered Exiles 1972 | -9/Exiles | Met 8R-AWN 1991 | -9/Exiles | Met EX-HEX 2040 | -9/Exiles | Met EX-DEC 2241 | -9/Exiles | Discovered new exit (range 10) 2252 | -9/Exiles | Entered Mines 2464 | -8/Mines | Build established: Hauler-Mutant 2583 | -8/Mines | Lost 3 parts (1p1n1w) 2891 | -8/Mines | Discovered new exit (range 15) 2914 | -8/Mines | Entered Materials 2914 | -8/Materials | Evolved 2 slots: Utility x2 3083 | -8/Materials | Lost 3 parts (1u2w) 3395 | -8/Materials | Discovered new exit (range 16) 3542 | -8/Materials | Discovered new exit (range 16) 3742 | -8/Materials | Build established: Scavenger-Mutant 4114 | -8/Materials | First assault squad dispatched 4193 | -8/Materials | Discovered new exit (range 8) 4202 | -8/Materials | Destroyed 10 combat bots 4394 | -8/Materials | Build established: Hauler-Mutant 4537 | -8/Materials | Identified exit to Garrison 4537 | -8/Materials | Entered Garrison 4566 | -8/Garrison | Triggered checkpoint 4632 | -8/Garrison | Garrison Relay disabled 4750 | -8/Garrison | Triggered checkpoint 4840 | -8/Garrison | Discovered new exit (range 9) 4861 | -8/Garrison | Installed Relay Interface Framework 4900 | -8/Garrison | Triggered checkpoint 4907 | -8/Garrison | Core integrity fell below 50% 4915 | -8/Garrison | Entered Materials 5058 | -8/Materials | Lost 4 parts (2u2w) 5329 | -8/Materials | Lost 4 parts (3n1u) 5421 | -8/Materials | Discovered new exit (range 16) 5436 | -8/Materials | Core integrity fell below 20% 5453 | -8/Materials | Destroyed by H-55 Commando with Gauss Rifle Last Messages --------------- 05420_ Penetrated by Slug. 05420_ Lgt. Armor Plating destroyed. 05421_ EXIT=FOUND 05423_ Penetrated by Slug. 05423_ Slug penetrates H-55 Commando. 05426_ System corrupted: Gauss Rifle targeting data glitched. 05426_ Slug penetrates H-55 Commando. 05429_ Penetrated by Slug. 05429_ Imp. Deuterium Engine destroyed. 05433_ Wheel destroyed. 05435_ Penetrated by Slug. 05435_ Wheel destroyed. 05440_ Gauss Rifle destroyed. 05441_ Imp. Deuterium Engine destroyed. 05441_ Critical hit. 05442_ Insulated Plating destroyed. 05447_ Penetrated by Slug. 05447_ Wheel destroyed. 05447_ Com. Wheel destroyed. 05453_ Penetrated by Slug. Map ----- +----------------------------------------------------+ | ????????????????????????????????????????? | | ????????????????????????????????????????? | | ????????????????????????????????????????? | | ????????????????????????????????????????? | | ????????????????????????????????????????? | | ????????????????????????????????????????? | | ????????????????????????????????????????? | | ????????????????????????????????????????? | | ????????????????????????????????????????? | | ????????????????????????????????????????? | | ??????????????? ????#####??????????????? | | ??????????????# ??? #?????????????? | | ??????????????# ?#! +?????????????? | | ??????????????# ?# #?????????????? | | ??????????????# ?? #?????????????? | | ??????????????# ?? #?????????????? | | ??????????????# ??? #?????????????? | | ??????????????# #?? #?????????????? | | ??????????????# ## ? #?????????????? | | ??????????????# ## #?????????????? | | ??????????????# #? #?????????????? | | ??????????????# #??? #######???????? | | ????????????### ######+### #???????? | | ????????????# k #???????? | | ????????????# < h g g #####???? | | ????????????# @ g gg Y # ##### | | ????????????####;########## = # | | ??????????????"" "????????## | | ?????????????""" "?????????# | | ???????????? """ ""????????# | | ???????????# ????????# | | ???????????? ! ???????# """ | | ???????????? ???????# """ | | ???????????# ?????? """ | | ???????????? ? [?????? | | ??????????????#####?????# | | ????????????????????????# ! | | ????????????????????????# ######+###### | | ????????????????????????# ????? ????? | | ????????????????????????# ????? ?????? | | ????????????????????????? ????? ?????? | | ????????????????????????????????? ?????? | | ????????????????????????????????????????? | | ????????????????????????????????????????? | | ????????????????????????????????????????# | | ????????????????????????????????????????# | | ????????????????????????????????????##### | | ????????????????????????????????????# | | ????????????????????????????????????# | | ????????????????????????????????????# | +----------------------------------------------------+ Best States ------------- Heat Dissipation 45 Energy Generation 16 Energy Capacity 290 Matter Stores 300 Matter Capacity 300 Sight Range 16 Robot Scan Range 13 Terrain Scan Range 20 Terrain Scan Density 10 Armor Coverage 450 Resistance: TH 10 Resistance: EM 15 Core Shielding 20 Utility Shielding 66 Evasion (%) 42 Targeting Accuracy 12 Particle Charging 15 Item Schematics ----------------- Hcp. Storage Unit | -9/Materials | Scanalyzed Robot Schematics ------------------ None Fabricated ------------ Nothing Alien Tech Used ----------------- None Achievements -------------- None Challenges ------------ None Game ------ Seed ExperimentalHelicalSheargun Manual? 0 Play Time 00:53:33 Cumulative 219.1 hours Start 2020.09.20 @ 23:44:49 End 2020.09.21 @ 00:34:33 Sessions 1 Manual Loads 0 Difficulty Rogue Special Mode None Game No. 170 Rogue 170 Adventurer 0 Explorer 0 Win Type - Total 10 Types 5/0/1/1/0/2/1/0/0 Lore% 74 Gallery% 78 Achievement% 72 Wizard Run 0 Options --------- ASCII 0 Keyboard 1 Movement Numpad Keybinds 0 Fullscreen 1 Font 12/Terminus Map View 83x54 Tactical HUD 1 Map Filters NONE Filters LOW_CONTRAST(13,24,33) Steam 1 RUN: 9078ea48-1da2-41bd-9d33-8acd4e1510b4